bitfinex/quotes_BTCUSD_20220202
["timestamp","ask_amount","ask_price","bid_price","bid_amount"]
[1643801073705,0.00018479,38511.0,38507.0,0.05]
[1643801073908,0.00103935,38511.0,38507.0,0.05]
[1643801074405,0.00122414,38511.0,38507.0,0.05]
[1643801074905,0.00018479,38511.0,38507.0,0.05]
[1643801075105,0.00103909,38511.0,38507.0,0.05]
[1643801075509,0.00122388,38511.0,38507.0,0.05]
[1643801076107,0.00018479,38511.0,38507.0,0.05]
[1643801076306,0.00103909,38511.0,38507.0,0.05]
[1643801076908,0.00122388,38511.0,38507.0,0.05]
[1643801077354,0.00018479,38511.0,38507.0,0.05]
[1643801077553,0.00018479,38511.0,38502.0,0.39522994]
[1643801077554,0.26989798,38511.0,38502.0,0.39522994]
[1643801077753,0.064929,38510.0,38500.0,0.46014794]
[1643801077952,0.32183554,38509.0,38500.0,0.46014794]
[1643801078155,0.25545112,38504.0,38500.0,0.46014794]
[1643801078353,0.25545112,38504.0,38501.0,0.350031]
[1643801079156,0.25545112,38504.0,38501.0,0.414959]
[1643801079955,0.00103912,38505.0,38501.0,0.414959]
[1643801080957,0.23837657,38507.0,38501.0,0.414959]
[1643801081206,0.00103913,38505.0,38502.0,0.064927]
[1643801081505,0.00103913,38505.0,38503.0,0.350031]
[1643801082105,0.00018479,38509.0,38503.0,0.350031]
[1643801082306,0.00103914,38506.0,38503.0,0.350031]
[1643801083308,0.00018479,38507.0,38503.0,0.350031]
[1643801083506,0.33119015,38508.0,38502.0,0.46015594]
[1643801083507,0.00103915,38506.0,38502.0,0.46015594]
[1643801083706,0.00103915,38506.0,38503.0,0.350031]
[1643801084508,0.00018479,38507.0,38503.0,0.350031]
[1643801084708,0.00103915,38506.0,38503.0,0.350031]
[1643801085756,0.00018479,38507.0,38503.0,0.350031]
[1643801085957,0.00103915,38506.0,38502.0,0.46015594]
[1643801086158,0.00103915,38506.0,38503.0,0.350031]
[1643801086557,0.00103915,38506.0,38503.0,0.81017194]
[1643801086756,0.00103915,38506.0,38504.0,0.33030294]
[1643801086959,0.00018479,38507.0,38505.0,0.350031]
[1643801087157,0.180521,38513.0,38506.0,0.414919]
[1643801087158,0.00018479,38509.0,38506.0,0.414919]
[1643801087658,0.00018479,38509.0,38507.0,0.350031]
[1643801087858,0.01969328,38511.0,38506.0,0.064919]
[1643801088259,0.23070579,38513.0,38506.0,0.064919]
[1643801088459,0.00103914,38510.0,38506.0,0.064919]
[1643801089206,0.00122393,38510.0,38506.0,0.129838]
[1643801089405,0.00018479,38510.0,38506.0,0.129838]
[1643801089608,0.00122393,38510.0,38506.0,0.129838]
[1643801089805,0.00103914,38510.0,38506.0,0.129838]
[1643801090606,0.00018479,38512.0,38506.0,0.129838]
[1643801090808,0.00103914,38510.0,38506.0,0.129838]
[1643801091808,0.0651042,38512.0,38506.0,0.129838]
[1643801092010,0.00103913,38510.0,38506.0,0.129838]
[1643801093055,0.00018479,38511.0,38506.0,0.129838]
[1643801093256,0.06491941,38512.0,38506.0,0.129838]
[1643801093257,0.00103913,38510.0,38506.0,0.129838]
[1643801093556,0.13088816,38510.0,38505.0,0.3286068]
[1643801093858,0.18088816,38510.0,38505.0,0.3286068]
[1643801094257,0.25383554,38510.0,38505.0,0.3286068]
[1643801094457,0.00103913,38509.0,38505.0,0.3286068]
[1643801094657,0.06492684,38508.0,38505.0,0.3286068]
[1643801095659,0.2305655,38506.0,38503.0,0.58997594]
[1643801095859,0.2305655,38506.0,38504.0,0.350031]
[1643801096112,0.05,38506.0,38503.0,0.58997594]
[1643801096505,0.00018479,38509.0,38503.0,0.58997594]
[1643801096706,0.29707781,38504.0,38503.0,0.58997594]
[1643801096906,0.29707781,38504.0,38503.0,0.94000694]
[1643801098107,0.34707781,38504.0,38503.0,0.94000694]
[1643801098907,0.34707781,38504.0,38503.0,0.609704]
[1643801099308,0.29707781,38504.0,38503.0,0.609704]
[1643801099608,0.00103915,38505.0,38503.0,0.609704]
[1643801099855,0.00103915,38505.0,38504.0,0.6803095]
[1643801100260,0.214165,38508.0,38504.0,0.6803095]
[1643801100459,0.00103915,38506.0,38504.0,0.3302785]
[1643801101262,0.00103915,38506.0,38503.0,0.5899515]
[1643801101465,0.28808163,38507.0,38502.0,0.3302785]
[1643801101666,0.28912078,38507.0,38501.0,0.3302785]
[1643801101864,0.33912078,38507.0,38501.0,0.3302785]
[1643801102463,0.40405978,38507.0,38500.0,0.3302785]
[1643801102667,0.46795949,38507.0,38500.0,0.3302785]
[1643801102864,0.00103914,38506.0,38500.0,0.3302785]
[1643801103365,0.00103914,38506.0,38503.0,0.064936]
[1643801103805,0.064938,38506.0,38503.0,0.064936]
[1643801104006,0.11597714,38506.0,38503.0,0.064936]
[1643801105106,0.114938,38506.0,38500.0,0.3302785]
[1643801105408,0.05103915,38506.0,38500.0,0.3302785]
[1643801105606,0.00103915,38506.0,38500.0,0.3302785]
[1643801106207,0.38808163,38507.0,38500.0,0.3302785]
[1643801106407,0.00103913,38505.0,38500.0,0.3302785]
[1643801106607,0.00090078,38505.0,38500.0,0.3302785]
[1643801107008,0.06583078,38505.0,38500.0,0.3252785]
[1643801107459,0.12985981,38505.0,38501.0,0.064932]
[1643801107659,0.05,38504.0,38501.0,0.064932]
[1643801110465,0.05,38504.0,38499.0,0.27889638]
[1643801110666,0.12986972,38503.0,38500.0,0.064934]
[1643801111106,0.17986972,38503.0,38500.0,0.064934]
[1643801111303,0.05,38502.0,38500.0,0.064934]
[1643801114955,0.05,38502.0,38500.0,0.39519571]
[1643801115556,0.05,38502.0,38500.0,0.064934]
[1643801115858,0.05,38502.0,38501.0,0.350031]
[1643801116056,0.17986972,38503.0,38501.0,0.350031]
[1643801116057,0.05,38503.0,38501.0,0.350031]
[1643801116459,0.05,38503.0,38501.0,0.68029271]
[1643801116657,0.05,38503.0,38502.0,0.350031]
[1643801116858,0.05,38503.0,38500.0,0.064934]
[1643801117257,0.1,38503.0,38501.0,0.350031]
[1643801117458,0.1,38503.0,38500.0,0.064934]
[1643801117658,0.1649328,38503.0,38500.0,0.064934]
[1643801118462,0.1649328,38503.0,38500.0,0.39519571]
[1643801119304,0.1649328,38503.0,38501.0,0.350031]
[1643801119707,0.1649328,38503.0,38500.0,0.39519571]
[1643801119903,0.1649328,38503.0,38501.0,0.350031]
[1643801120808,0.1649328,38503.0,38500.0,0.39519571]
[1643801121606,0.2298668,38503.0,38500.0,0.064934]
[1643801121806,0.05,38502.0,38500.0,0.064934]
[1643801122006,0.11493465,38502.0,38500.0,0.39519571]
[1643801122452,0.06493465,38502.0,38500.0,0.39519571]
[1643801122652,0.064934,38503.0,38501.0,0.350031]
[1643801122853,0.114934,38503.0,38501.0,0.350031]
[1643801123052,0.114934,38503.0,38501.0,0.68029271]
[1643801123453,0.11493121,38503.0,38501.0,0.68029271]
[1643801123756,0.06493121,38503.0,38501.0,0.350031]
[1643801123953,0.06493121,38503.0,38501.0,0.74522371]
[1643801124153,0.06493121,38503.0,38501.0,0.414962]
[1643801124353,0.06493121,38503.0,38501.0,0.064931]
[1643801124555,0.06493121,38503.0,38502.0,0.34995]
[1643801124755,0.06493121,38503.0,38501.0,0.39519271]
[1643801125257,0.06493,38505.0,38502.0,0.34995]
[1643801125258,0.12985821,38505.0,38502.0,0.34995]
[1643801125456,0.05,38504.0,38501.0,0.39519271]
[1643801126110,0.05,38504.0,38501.0,0.064931]
[1643801126504,0.05,38504.0,38499.0,0.60915809]
[1643801126704,0.12986763,38503.0,38499.0,0.60915809]
[1643801126904,0.12986763,38503.0,38499.0,0.27889638]
[1643801127103,0.12986763,38503.0,38500.0,0.064933]
[1643801128910,0.12986763,38503.0,38501.0,0.34995]
[1643801130260,0.17986763,38503.0,38500.0,0.064933]
[1643801130660,0.05,38502.0,38500.0,0.064933]
[1643801131061,0.11493412,38502.0,38500.0,0.064933]
[1643801131264,0.064937,38501.0,38498.0,0.129859]
[1643801131467,0.114937,38501.0,38498.0,0.129859]
[1643801131863,0.064937,38501.0,38499.0,0.34995]
[1643801132063,0.0649311,38503.0,38500.0,0.064931]
[1643801132263,0.0649311,38503.0,38501.0,0.34995]
[1643801132462,0.0649311,38503.0,38498.0,0.46012071]
[1643801132663,0.0649311,38503.0,38499.0,0.34995]
[1643801133063,0.0649311,38503.0,38499.0,0.06493]
[1643801133264,0.1149311,38503.0,38499.0,0.06493]
[1643801133463,0.1149311,38503.0,38501.0,0.064929]
[1643801133711,0.1649311,38503.0,38501.0,0.064929]
[1643801134912,0.29480082,38503.0,38501.0,0.064929]
[1643801135314,0.29480082,38503.0,38498.0,0.46012071]
[1643801135315,0.5972531,38502.0,38498.0,0.46012071]
[1643801135511,0.064939,38501.0,38498.0,0.129859]
[1643801135711,0.12987919,38501.0,38498.0,0.129859]
[1643801136112,0.05,38500.0,38498.0,0.129859]
[1643801136717,0.04990001,38500.0,38498.0,0.129859]
[1643801137759,0.12987919,38501.0,38498.0,0.46012071]
[1643801137958,0.12987919,38501.0,38498.0,0.129859]
[1643801138959,0.12987919,38501.0,38498.0,0.46012071]
[1643801142808,0.12987919,38501.0,38500.0,0.37436479]
[1643801143210,0.17987919,38501.0,38500.0,0.37436479]
[1643801143410,0.11494019,38501.0,38500.0,0.37436479]
[1643801144009,0.06494019,38501.0,38500.0,0.37436479]
[1643801144857,0.06494019,38501.0,38499.0,0.33026171]
[1643801145959,0.12987419,38501.0,38499.0,0.33026171]
[1643801146359,0.17987419,38501.0,38499.0,0.33026171]
[1643801146759,0.17987419,38501.0,38500.0,0.34995]
[1643801146959,0.17987419,38501.0,38500.0,0.68021171]
[1643801147359,0.11494019,38501.0,38500.0,0.68021171]
[1643801147559,0.11494019,38501.0,38500.0,0.34995]
[1643801147758,0.11494019,38501.0,38498.0,0.58014644]
[1643801147959,0.11494019,38501.0,38499.0,1.20336832]
[1643801148160,0.11494019,38501.0,38499.0,0.73530344]
[1643801148809,0.05,38500.0,38499.0,0.73530344]
[1643801149008,0.05,38500.0,38499.0,1.20336848]
[1643801149608,0.11494019,38501.0,38499.0,1.20336848]
[1643801149816,0.11494019,38501.0,38500.0,0.38535344]
[1643801150008,0.05,38501.0,38500.0,0.73530344]
[1643801150209,0.1,38501.0,38500.0,1.23166871]
[1643801150415,0.1486252,38506.0,38500.0,1.23166871]
[1643801150416,0.01876716,38506.0,38500.0,1.23166871]
[1643801150608,0.28808163,38507.0,38501.0,0.46018982]
[1643801150609,0.46429905,38507.0,38501.0,0.46018982]
[1643801150810,0.26388059,38506.0,38501.0,0.46018982]
[1643801151009,0.26388059,38506.0,38501.0,0.33032882]
[1643801151411,0.37041062,38507.0,38501.0,0.33032882]
[1643801151610,0.25044195,38505.0,38501.0,0.33032882]
[1643801152209,0.25044195,38505.0,38501.0,0.39526182]
[1643801154862,0.25044195,38505.0,38501.0,0.064933]
[1643801156309,0.25044195,38505.0,38501.0,0.39526182]
[1643801157110,0.25044195,38505.0,38501.0,0.064933]
[1643801158809,0.30044195,38505.0,38501.0,0.064933]
[1643801159511,0.30044195,38505.0,38501.0,0.39526182]
[1643801160165,0.30035492,38505.0,38501.0,0.39526182]
[1643801160763,0.17621742,38507.0,38501.0,0.39526182]
[1643801160964,0.17621742,38507.0,38502.0,0.68027882]
[1643801161163,0.14402183,38508.0,38503.0,0.39525582]
[1643801161364,0.01992183,38508.0,38503.0,0.39525582]
[1643801161565,0.38113875,38509.0,38503.0,0.39525582]
[1643801161763,0.21483667,38504.0,38503.0,0.39525582]
[1643801161963,0.21483667,38504.0,38503.0,0.064927]
[1643801162963,0.2534574,38506.0,38503.0,0.064927]
[1643801163163,0.2534574,38506.0,38502.0,0.33032882]
[1643801163619,0.3034574,38506.0,38501.0,0.39526182]
[1643801164416,0.3683914,38506.0,38501.0,0.39526182]
[1643801164614,0.3183914,38506.0,38501.0,0.39526182]
[1643801164813,0.2534574,38506.0,38501.0,0.39526182]
[1643801165615,0.2534574,38506.0,38503.0,0.064931]
[1643801169169,0.3183874,38506.0,38503.0,0.064931]
[1643801173011,0.3183874,38506.0,38502.0,0.33032882]
[1643801173414,0.3183874,38506.0,38501.0,0.33032882]
[1643801173612,0.3683874,38506.0,38501.0,0.33032882]
[1643801174311,0.43332459,38506.0,38501.0,0.33032882]
[1643801174864,0.38332459,38506.0,38501.0,0.33032882]
[1643801175665,0.3183874,38506.0,38501.0,0.33032882]
[1643801176867,0.3683874,38506.0,38501.0,0.33032882]
[1643801177468,0.43332321,38506.0,38501.0,0.33032882]
[1643801178714,0.43332321,38506.0,38501.0,0.39526282]
[1643801179116,0.3683874,38506.0,38501.0,0.39526282]
[1643801179715,0.3183874,38506.0,38501.0,0.39526282]
[1643801181815,0.3683874,38506.0,38501.0,0.39526282]
[1643801182015,0.43332379,38506.0,38501.0,0.33032882]
[1643801182664,0.69808463,38506.0,38501.0,0.33032882]
[1643801183771,0.48332379,38506.0,38501.0,0.33032882]
[1643801183967,0.74680041,38506.0,38501.0,0.33032882]
[1643801184366,0.69680041,38506.0,38501.0,0.33032882]
[1643801184567,0.43332379,38506.0,38501.0,0.33032882]
[1643801184767,0.3683874,38506.0,38501.0,0.33032882]
[1643801185169,0.63737335,38506.0,38501.0,0.33032882]
[1643801186432,0.63737335,38506.0,38501.0,0.39526382]
[1643801186629,0.3683874,38506.0,38501.0,0.39526382]
[1643801186827,0.3683874,38506.0,38502.0,0.33032882]
[1643801187028,0.36827224,38506.0,38502.0,0.33032882]
[1643801187229,0.36827224,38506.0,38501.0,0.39526382]
[1643801188028,0.36827224,38506.0,38502.0,0.33032882]
[1643801188428,0.36827224,38506.0,38502.0,0.39526182]
[1643801191366,0.31851244,38506.0,38502.0,0.39526182]
[1643801191767,0.31851244,38506.0,38502.0,0.33032882]
[1643801193369,0.06493692,38505.0,38502.0,0.33032882]
[1643801193624,0.12987492,38505.0,38502.0,0.33032882]
[1643801194418,0.064938,38505.0,38502.0,0.33032882]
[1643801196722,0.064938,38505.0,38503.0,0.33032882]
[1643801200374,0.064938,38505.0,38503.0,0.39525982]
[1643801204623,0.01505504,38506.0,38505.0,0.07124467]
[1643801204871,0.01505504,38506.0,38504.0,0.39525882]
[1643801206072,0.064938,38505.0,38504.0,0.39525882]
[1643801208719,0.114938,38505.0,38504.0,0.39525882]
[1643801210720,0.064938,38505.0,38504.0,0.39525882]
[1643801212469,0.064938,38505.0,38504.0,0.33032882]
[1643801212668,0.114938,38505.0,38504.0,0.33032882]
[1643801212868,0.064938,38505.0,38504.0,0.33032882]
[1643801213268,0.064938,38505.0,38503.0,0.33032882]
[1643801213867,0.114938,38505.0,38503.0,0.33032882]
[1643801214868,0.064938,38505.0,38503.0,0.33032882]
[1643801215868,0.114938,38505.0,38503.0,0.33032882]
[1643801217927,0.064938,38505.0,38503.0,0.33032882]
[1643801220868,0.114938,38505.0,38503.0,0.33032882]
[1643801224225,0.064938,38505.0,38503.0,0.33032882]
[1643801225124,0.12987608,38505.0,38503.0,0.33032882]
[1643801225825,0.12987608,38505.0,38502.0,0.33032882]
[1643801227026,0.064938,38505.0,38502.0,0.33032882]
[1643801228572,0.064938,38505.0,38501.0,0.39536441]
[1643801228773,0.064938,38505.0,38501.0,0.39526482]
[1643801229172,0.114938,38505.0,38501.0,0.39526482]
[1643801230473,0.114938,38505.0,38502.0,0.33032882]
[1643801230672,0.114938,38505.0,38502.0,0.39526282]
[1643801231522,0.064938,38505.0,38502.0,0.39526282]
[1643801231722,0.114938,38505.0,38502.0,0.39526282]
[1643801233725,0.114938,38505.0,38502.0,0.33032882]
[1643801233923,0.134938,38505.0,38502.0,0.33032882]
[1643801234123,0.134938,38505.0,38501.0,0.33032882]
[1643801235374,0.134938,38505.0,38501.0,0.33042841]
[1643801235978,0.134938,38505.0,38501.0,0.39526482]
[1643801236578,0.134938,38505.0,38501.0,0.39536441]
[1643801236579,0.084938,38505.0,38501.0,0.39536441]
[1643801236777,0.134938,38505.0,38502.0,0.33032882]
[1643801236979,0.13482513,38505.0,38501.0,0.33042841]
[1643801237179,0.13482513,38505.0,38503.0,0.33032882]
[1643801238382,0.13482513,38505.0,38503.0,0.39526282]
[1643801239225,0.08482513,38505.0,38503.0,0.39526282]
[1643801242973,0.08482513,38505.0,38503.0,0.064934]
[1643801248624,0.08482513,38505.0,38503.0,0.39526282]
[1643801249917,0.08482513,38505.0,38503.0,0.064934]
[1643801250518,0.08482513,38505.0,38502.0,0.33032882]
[1643801251818,0.08482513,38505.0,38501.0,0.39536341]
[1643801252019,0.08482513,38505.0,38501.0,0.39526382]
[1643801252420,0.08482513,38505.0,38502.0,0.33032882]
[1643801252821,0.08482513,38505.0,38501.0,0.39536341]
[1643801253221,0.08482513,38505.0,38501.0,0.39526382]
[1643801253729,0.08482513,38505.0,38502.0,0.33032882]
[1643801254027,0.08482513,38505.0,38501.0,0.39526382]
[1643801256329,0.08482513,38505.0,38502.0,0.33032882]
[1643801256528,0.08482513,38505.0,38502.0,0.39526182]
[1643801257988,0.08482513,38505.0,38502.0,0.33032882]
[1643801260687,0.08482513,38505.0,38502.0,0.39526282]
[1643801261930,0.06482513,38505.0,38502.0,0.37526282]
[1643801267377,0.74013907,38508.0,38503.0,0.35]
[1643801267378,0.33501994,38508.0,38503.0,0.35]
[1643801267578,0.05,38507.0,38503.0,0.35]
[1643801267776,0.05,38507.0,38502.0,0.064934]
[1643801267977,0.064938,38505.0,38502.0,0.064934]
[1643801270026,0.064938,38505.0,38502.0,0.39540985]
[1643801270228,0.064938,38505.0,38503.0,0.33047585]
[1643801272981,0.05789055,38505.0,38503.0,0.33047585]
[1643801273583,0.05789055,38505.0,38503.0,0.39540785]
[1643801277226,0.05789055,38505.0,38504.0,0.33047585]
[1643801277628,0.13005613,38507.0,38504.0,0.33047585]
[1643801277925,0.13005613,38507.0,38505.0,0.064929]
[1643801278126,0.129871,38507.0,38505.0,0.064929]
[1643801279527,0.33520507,38508.0,38505.0,0.064929]
[1643801279728,0.15880252,38508.0,38505.0,0.064929]
[1643801280178,0.33501994,38508.0,38505.0,0.064929]
[1643801280378,0.15880252,38508.0,38505.0,0.064929]
[1643801280578,0.33501994,38508.0,38505.0,0.064929]
[1643801280778,0.15880252,38508.0,38505.0,0.064929]
[1643801280979,0.064931,38507.0,38505.0,0.064929]
[1643801282979,0.064931,38507.0,38503.0,0.39537172]
[1643801283181,0.06511613,38507.0,38503.0,0.33043872]
[1643801283380,0.06511613,38507.0,38502.0,0.33043872]
[1643801284037,0.22611675,38503.0,38502.0,0.33043872]
[1643801284438,0.064938,38504.0,38502.0,0.33043872]
[1643801285141,0.064938,38504.0,38501.0,0.33053797]
[1643801285337,0.064938,38504.0,38501.0,0.33043872]
[1643801285540,0.064938,38504.0,38501.0,0.39537472]
[1643801286038,0.43238227,38502.0,38501.0,0.33043872]
[1643801286238,0.52713526,38502.0,38501.0,0.33043872]
[1643801287681,0.32515515,38502.0,38501.0,0.33043872]
[1643801288079,0.23134103,38508.0,38501.0,0.33043872]
[1643801288281,0.01948042,38513.0,38507.0,0.1]
[1643801288481,0.01948042,38513.0,38509.0,0.33043872]
[1643801288682,0.01948042,38513.0,38511.0,0.38551184]
[1643801288879,0.01948042,38513.0,38512.0,1.42225276]
[1643801289082,0.01948042,38513.0,38512.0,2.17897673]
[1643801289280,0.01948042,38513.0,38512.0,2.42368473]
[1643801289480,0.3681,38525.0,38515.0,0.20455473]
[1643801289481,0.45627136,38525.0,38515.0,0.20455473]
[1643801289680,0.71613566,38525.0,38520.0,0.24379413]
[1643801289881,0.45627136,38525.0,38520.0,0.29379413]
[1643801290083,0.00104143,38522.0,38521.0,0.34995]
[1643801290880,0.00104143,38522.0,38521.0,0.56811472]
[1643801291133,0.64940638,38525.0,38521.0,0.34995]
[1643801291328,0.00104143,38523.0,38521.0,0.12980015]
[1643801291526,0.00104143,38523.0,38522.0,0.34995]
[1643801292327,0.28130638,38525.0,38522.0,0.34995]
[1643801292628,0.00104143,38524.0,38521.0,0.12980015]
[1643801293228,0.00104143,38524.0,38522.0,0.34995]
[1643801293429,0.28130638,38525.0,38522.0,0.34995]
[1643801293628,0.28130638,38525.0,38521.0,0.12980015]
[1643801293629,0.28234515,38525.0,38521.0,0.12980015]
[1643801294628,0.28130638,38525.0,38521.0,0.12980015]
[1643801294885,0.28234515,38525.0,38522.0,0.34995]
[1643801295087,0.28234515,38525.0,38521.0,0.12980015]
[1643801295288,0.28234515,38525.0,38522.0,0.0522]
[1643801295590,0.28234515,38525.0,38522.0,0.27078899]
[1643801295786,0.28130638,38525.0,38522.0,0.27078899]
[1643801296187,0.28234515,38525.0,38522.0,0.27078899]
[1643801296988,0.28130638,38525.0,38522.0,0.27078899]
[1643801297389,0.28234575,38525.0,38522.0,0.27078899]
[1643801298191,0.28130638,38525.0,38522.0,0.27078899]
[1643801298638,0.00103937,38525.0,38522.0,0.27078899]
[1643801298835,0.00103937,38525.0,38524.0,0.314895]
[1643801299033,0.00103937,38525.0,38524.0,0.9106969]
[1643801299435,0.01,38529.0,38524.0,0.9106969]
[1643801299636,0.00103937,38526.0,38524.0,0.2458519]
[1643801299835,0.00103937,38526.0,38523.0,0.129789]
[1643801300035,0.27394848,38525.0,38523.0,0.129789]
[1643801300838,0.00103923,38526.0,38523.0,0.129789]
[1643801301838,0.30672374,38527.0,38523.0,0.129789]
[1643801302040,0.00103923,38526.0,38523.0,0.129789]
[1643801303081,0.30672374,38527.0,38523.0,0.129789]
[1643801303284,0.00103923,38526.0,38523.0,0.129789]
[1643801304285,0.30690878,38527.0,38523.0,0.129789]
[1643801304485,0.00103926,38526.0,38523.0,0.129789]
[1643801305384,0.30690878,38527.0,38523.0,0.129789]
[1643801305685,0.00103926,38526.0,38523.0,0.34783237]
[1643801306534,0.00103926,38526.0,38523.0,0.129789]
[1643801306735,0.30690878,38527.0,38523.0,0.129789]
[1643801306934,0.00103926,38526.0,38523.0,0.129789]
[1643801307935,0.30690878,38527.0,38523.0,0.129789]
[1643801308132,0.00103925,38526.0,38523.0,0.129789]
[1643801309133,0.15650242,38527.0,38523.0,0.129789]
[1643801309333,0.00103925,38526.0,38523.0,0.129789]
[1643801310280,0.15650242,38527.0,38523.0,0.129789]
[1643801310480,0.00103925,38526.0,38523.0,0.129789]
[1643801311482,0.15650242,38527.0,38523.0,0.129789]
[1643801311682,0.00103925,38526.0,38523.0,0.129789]
[1643801312685,0.15650242,38527.0,38523.0,0.129789]
[1643801312886,0.00103925,38526.0,38523.0,0.129789]
[1643801313741,0.31391934,38521.0,38519.0,0.22403043]
[1643801313946,0.00018504,38526.0,38517.0,0.05]
[1643801314141,0.00018504,38526.0,38518.0,0.59618349]
[1643801314142,0.00122429,38526.0,38518.0,0.59618349]
[1643801314541,0.00103925,38526.0,38518.0,0.59618349]
[1643801314742,0.00103925,38526.0,38524.0,0.27181942]
[1643801315042,0.09100597,38527.0,38525.0,0.064899]
[1643801315043,0.14100597,38527.0,38525.0,0.064899]
[1643801315242,0.14119101,38527.0,38525.0,0.064899]
[1643801315844,0.09100597,38527.0,38525.0,0.064899]
[1643801316243,0.31217383,38527.0,38525.0,0.064899]
[1643801316545,0.09100597,38527.0,38525.0,0.064899]
[1643801318890,0.09100597,38527.0,38522.0,0.129796]
[1643801319091,0.09119101,38527.0,38522.0,0.129796]
[1643801319889,0.14119101,38527.0,38522.0,0.129796]
[1643801320089,0.00125002,38526.0,38522.0,0.129796]
[1643801320289,0.00125002,38526.0,38523.0,0.34995]
[1643801321144,0.09119101,38527.0,38524.0,0.064897]
[1643801321339,0.00125002,38526.0,38524.0,0.064897]
[1643801322436,0.09119101,38527.0,38524.0,0.064897]
[1643801322437,0.09219361,38527.0,38524.0,0.064897]
[1643801322637,0.09200857,38527.0,38524.0,0.064897]
[1643801324639,0.09100597,38527.0,38525.0,0.34995]
[1643801325086,0.0010026,38527.0,38525.0,0.34995]
[1643801325282,0.0010026,38527.0,38526.0,0.79703192]
[1643801325481,0.0010026,38527.0,38526.0,0.61236631]
[1643801325884,0.30347162,38529.0,38526.0,0.67725731]
[1643801326184,0.00106202,38528.0,38527.0,0.34995]
[1643801326385,0.07887091,38527.0,38526.0,0.064891]
[1643801326583,0.07887091,38527.0,38526.0,0.414841]
[1643801327386,0.07887091,38527.0,38526.0,0.69806467]
[1643801328735,0.07887091,38527.0,38526.0,0.414841]
[1643801329034,0.00106202,38528.0,38526.0,0.65451066]
[1643801329235,0.00106202,38528.0,38527.0,0.23463153]
[1643801329440,0.30328658,38529.0,38527.0,0.23463153]
[1643801329634,0.30433527,38529.0,38527.0,0.23463153]
[1643801329835,0.30433527,38529.0,38528.0,0.34995]
[1643801330234,0.30433527,38529.0,38527.0,0.23463153]
[1643801330435,0.38773787,38529.0,38527.0,0.23463153]
[1643801330735,0.0934026,38529.0,38527.0,0.23463153]
[1643801330936,0.0934026,38529.0,38528.0,0.34995]
[1643801331336,0.01,38529.0,38528.0,0.58515541]
[1643801331536,0.01,38529.0,38528.0,0.62428471]
[1643801331736,0.00818428,38529.0,38528.0,0.62428471]
[1643801333889,0.00818428,38529.0,38525.0,0.05]
[1643801334088,0.00818428,38529.0,38526.0,0.34995]
[1643801334386,0.00818428,38529.0,38525.0,0.05]
[1643801334689,0.009421,38529.0,38525.0,0.05]
[1643801335085,0.00923596,38529.0,38525.0,0.05]
[1643801335285,0.2929139,38526.0,38525.0,0.05]
[1643801335487,0.2929139,38526.0,38525.0,0.39995]
[1643801335886,0.2929139,38526.0,38525.0,0.05]
[1643801336141,0.2929139,38526.0,38525.0,0.39995]
[1643801336936,0.2929139,38526.0,38525.0,0.63704579]
[1643801337135,0.2929139,38526.0,38525.0,0.86381503]
[1643801337835,0.2929139,38526.0,38525.0,0.62671924]
[1643801338037,0.2929139,38526.0,38525.0,0.39995]
[1643801338735,0.2929139,38526.0,38525.0,0.62734292]
[1643801339337,0.2929139,38526.0,38525.0,0.55627777]
[1643801339637,0.00105101,38527.0,38525.0,0.34995]
[1643801339884,0.00105101,38527.0,38523.0,0.21508177]
[1643801340083,0.00105101,38527.0,38524.0,0.349812]
[1643801340283,0.00018504,38528.0,38525.0,0.22132914]
[1643801340485,0.00105116,38527.0,38526.0,0.349812]
[1643801341385,0.00105116,38527.0,38526.0,0.064888]
[1643801341686,0.22199245,38528.0,38526.0,0.62320139]
[1643801341886,0.22199245,38528.0,38526.0,0.4147]
[1643801342086,0.22199245,38528.0,38527.0,0.20347541]
[1643801342287,0.22199245,38528.0,38526.0,0.064888]
[1643801342490,0.00818428,38529.0,38527.0,0.20727426]
[1643801342689,0.00018504,38530.0,38529.0,0.7]
[1643801342888,0.00018504,38531.0,38529.0,1.166895]
[1643801343087,0.00018504,38531.0,38530.0,0.799812]
[1643801343289,0.00018504,38531.0,38530.0,1.09533717]
[1643801343499,0.59182611,38541.0,38532.0,0.10342215]
[1643801343735,0.62803258,38541.0,38533.0,0.0522]
[1643801343935,0.35693566,38541.0,38533.0,0.0522]
[1643801344138,0.00125275,38538.0,38533.0,0.0522]
[1643801344335,0.00125275,38538.0,38534.0,0.349812]
[1643801344535,0.00125275,38538.0,38535.0,0.0522]
[1643801344736,0.00125275,38538.0,38536.0,0.24643451]
[1643801344936,0.00125275,38538.0,38536.0,0.0522]
[1643801345138,0.00018504,38540.0,38536.0,0.0522]
[1643801345337,0.00125274,38539.0,38536.0,0.0522]
[1643801345537,0.00125274,38539.0,38537.0,0.25890863]
[1643801345738,0.00125274,38539.0,38537.0,0.32377363]
[1643801345937,0.00125274,38539.0,38538.0,0.67728548]
[1643801346336,0.00018504,38544.0,38538.0,0.67728548]
[1643801346636,0.00125272,38540.0,38539.0,0.42972713]
[1643801346836,0.00125272,38540.0,38539.0,0.77133272]
[1643801347480,0.00018504,38545.0,38539.0,0.83619772]
[1643801347687,0.61564757,38546.0,38539.0,0.83619772]
[1643801347688,0.00100493,38541.0,38540.0,0.05]
[1643801347883,0.00100493,38541.0,38540.0,0.29487382]
[1643801348083,0.00100493,38541.0,38540.0,0.34707382]
[1643801348782,0.10006812,38542.0,38540.0,0.34707382]
[1643801348982,0.10006812,38542.0,38540.0,0.1022]
[1643801348983,0.10107305,38542.0,38540.0,0.1022]
[1643801349883,0.10006812,38542.0,38541.0,0.22925297]
[1643801350085,0.10006812,38542.0,38540.0,0.05]
[1643801350486,0.00118997,38543.0,38540.0,0.05]
[1643801350487,0.09834873,38543.0,38540.0,0.05]
[1643801350685,0.09853397,38543.0,38540.0,0.05]
[1643801351331,0.09834873,38543.0,38540.0,0.05]
[1643801351729,0.26199429,38541.0,38540.0,0.05]
[1643801353030,0.09853397,38543.0,38540.0,0.05]
[1643801353230,0.09834873,38543.0,38540.0,0.05]
[1643801359345,0.09803635,38543.0,38540.0,0.05]
[1643801360650,0.6396281,38542.0,38531.0,0.129741]
[1643801360853,0.36828301,38542.0,38529.0,0.129753]
[1643801361445,0.36846825,38542.0,38529.0,0.129753]
[1643801361648,0.07693119,38530.0,38529.0,0.129753]
[1643801361846,0.07693119,38530.0,38529.0,0.479565]
[1643801362681,0.00018524,38532.0,38530.0,0.02945364]
[1643801362883,0.00018524,38537.0,38531.0,0.414691]